Cogmind - Beta 16 *** ADVENTURER MODE // 2025.12.21 @ 15:59:47 Player: 4NDYB007H Result: Destroyed by D-53 Grenadier with Mini Grenade Launcher Performance ------------- Evolutions (0) 0 Regions Visited (2) 400 Robots Destroyed (3) 15 Value Destroyed (86) 86 Prototype IDs (0) 0 Alien Tech Used (0) 0 Bonus (0) 0 TOTAL SCORE: 501 Bonus ------- None Cogmind --------- Core Integrity 0/250 Matter 300/300 Energy 100/100 System Corruption 0% Temperature Cool (0) Movement Core (100) Ox1 Location -10/Mines Parts ------- > --- POWER (1) -------- (None) > --- PROPULSION (2) --- (None) > --- UTILITY (2) ------ Small Storage Unit Utility Shielding > --- WEAPON (2) ------- (None) > --- INVENTORY (8) ---- Light Ion Engine Light Ion Engine Targeting Computer ECM Suite ECM Suite EM Pulse Gun Datajack Peak State ------------ > --- POWER ------------ Light Ion Engine > --- PROPULSION ------- Wheel Wheel > --- UTILITY ---------- Small Storage Unit Utility Shielding > --- WEAPON ----------- EM Pulse Gun Small Laser > --- INVENTORY -------- Ion Engine Light Ion Engine Heat Sink Light Assault Rifle Grenade Launcher [Rating: 7] Favorites ----------- Power Light Ion Engine Engine Light Ion Engine Propulsion Wheel Wheel Wheel Utility Small Storage Unit Storage Small Storage Unit Protection Utility Shielding Weapon Small Laser Energy Gun Small Laser Ballistic Gun Light Assault Rifle Launcher Grenade Launcher Build | -11 -10 -10 ------- Run | Yrd Mat Min Slots Evolved . | . . . Power . | . . . Propulsion . | . . . Utility . | . . . Weapon . | . . . Parts Attached 10 | 5 3 2 Power 2 | 1 1 . Engine 2 | 1 1 . Core . | . . . Reactor . | . . . Propulsion 2 | 2 . . Treads . | . . . Leg . | . . . Wheel 2 | 2 . . Hover . | . . . Flight . | . . . Utility 2 | . 2 . Device . | . . . Storage 1 | . 1 . Processor . | . . . Hackware . | . . . Protection 1 | . 1 . Artifact . | . . . Weapon 4 | 2 . 2 Energy Gun 2 | 2 . . Energy Cannon . | . . . Ballistic Gun 1 | . . 1 Ballistic Cannon . | . . . Launcher 1 | . . 1 Special Weapon . | . . . Impact Weapon . | . . . Slashing Weapon . | . . . Piercing Weapon . | . . . Special Melee Weapon . | . . . Unidentified Prototypes . | . . . Parts Lost 6 | . . 6 Power 1 | . . 1 Propulsion 2 | . . 2 Utility . | . . . Weapon 3 | . . 3 Highest Loss Streak 3 | . . 3 To Critical Strikes . | . . . Average Backups 6 | . 6 7 Power 1 | . 1 2 Propulsion . | . . . Utility 2 | . 2 3 Weapon 1 | . 1 1 Tool/Special . | . . . Unused Backups 8 | . 3 5 Power 2 | . 1 1 Propulsion . | . . . Utility 5 | . 2 3 Weapon . | . . . Tool/Special 1 | . . 1 Average Slot Usage (%) 90 | . 92 88 Engine 13 | . 14 13 Wheel 23 | . 28 18 Storage 12 | . 10 14 Protection 12 | . 10 14 Energy Gun 24 | . 28 21 Ballistic Gun 1 | . . 2 Launcher 1 | . . 2 Peak Build Rating 7 | 5 7 7 Average Rating 5 | 2 6 6 On Entrance 4 | . 5 7 Avg Prop Armor Cover (%) . | . . . Naked Turns . | . . . Heaviest Build 15 | 6 14 15 Greatest Support 20 | 20 20 20 Greatest Overweight (x) 4 | . . 4 Average Overweight (x) . | . . . Largest Inventory Capacity 8 | 5 8 8 Average Capacity 7 | 5 7 8 Most Carried 8 | 3 8 8 Average Carried 6 | 1 6 7 Final Capacity 8 | 5 8 8 Final Carried 8 | 3 8 7 Class Distribution -------------------- 100% | Mutant Dominant Class ---------------- Mutant | -10/Materials Mutant | -10/Mines Resources | -11 -10 -10 ----------- Run | Yrd Mat Min Matter Collected 300 | 250 . 50 Remotely . | . . . Salvage Created 103 | 38 . 65 Parts 7 | 4 . 3 Haulers Intercepted . | . . . Recyclers Shooed 1 | . . 1 Parts Field Recycled . | . . . Retrieved Matter . | . . . Parts Self-Destructed . | . . . Prevented . | . . . Parts Restored . | . . . Kills | -11 -10 -10 ------- Run | Yrd Mat Min Combat Hostiles Destroyed 6 | 1 . 5 Guns 2 | 1 . 1 AOE 4 | . . 4 Classes Destroyed 3 | 1 . 2 Builder 1 | . . 1 Grunt 2 | 1 . 1 Assembled 4 | . . 4 Best Kill Streak 5 | 1 . 5 Combat Bots Only 4 | 1 . 4 Max Kills in Single Turn 3 | 1 . 3 Gunslinging . | . . . Exploded 3 | . . 3 Melee . | . . . Uniques/NPCs Destroyed . | . . . Combat | -11 -10 -10 -------- Run | Yrd Mat Min Hostile Shots Fired 65 | 3 8 54 Missed 23 | 1 2 20 Hits 42 | 2 6 34 Melee 4 | . . 4 Projectile 38 | 2 6 30 AOE 10 | . . 10 Damage Taken 726 | 17 65 644 Core 252 | . 14 238 Absorbed by Shields . | . . . Redirected to Shielding 17 | . 2 15 Ignored by Resistances 205 | 6 16 183 Core Remaining (%) 100 | 100 . . Volleys Fired 18 | 2 3 13 Largest 2 | 2 2 2 Hottest 80 | 80 80 80 Shots Fired 30 | 4 6 20 Gun 26 | 4 6 16 Cannon . | . . . Launcher 4 | . . 4 Special . | . . . Kinetic 2 | . . 2 Thermal 17 | 2 3 12 Explosive 4 | . . 4 Electromagnetic 7 | 2 3 2 Robot Hit Streak 6 | 2 6 5 Robot Miss Streak 3 | 1 . 3 Penetration Max . | . . . Secondary Targets . | . . . Shots Hit Robots 18 | 3 4 11 Core Hits 12 | 2 2 8 Critical Kills . | . . . Critical Parts Destroyed . | . . . Critical Strikes . | . . . Melee Attacks . | . . . Impact . | . . . Slashing . | . . . Piercing . | . . . Sneak Attacks . | . . . Combat Hostiles . | . . . Follow-up Attacks . | . . . Damage Inflicted 484 | 35 62 387 Guns 163 | 35 44 84 Cannons . | . . . Explosions 297 | . . 297 Melee . | . . . Ramming 24 | . 18 6 Kinetic 8 | . . 8 Thermal 106 | 10 20 76 Explosive 297 | . . 297 Electromagnetic 49 | 25 24 . Impact . | . . . Slashing . | . . . Piercing . | . . . Highest Corruption . | . . . Average Corruption . | . . . Corruption Purged . | . . . Corruption Blocked . | . . . Overload Shots . | . . . Overflow Damage 27 | . . 27 Projectiles . | . . . Explosions 27 | . . 27 Melee . | . . . Knockbacks . | . . . Impact . | . . . Kinetic . | . . . Secondary . | . . . Self-Inflicted Damage 27 | . 9 18 Shots 1 | . . 1 Rammed 4 | . 2 2 Targets Rammed 4 | . 2 2 Kicked . | . . . Crushed . | . . . Highest Temperature 72 | 42 72 38 Average Temperature 22 | 22 38 16 Received Heat Transfer 189 | 12 36 141 Siege Activations . | . . . Martial Activations . | . . . Shielding Activations . | . . . Robots Disrupted . | . . . Combat Hostiles . | . . . Robots Corrupted . | . . . Combat Hostiles . | . . . Parts Fried . | . . . Impact Corruptions . | . . . Robots Melted . | . . . Combat Hostiles . | . . . Parts Melted . | . . . Heat Transferred 250 | 25 50 175 Parts Sabotaged . | . . . Parts Stolen . | . . . Parts Stripped . | . . . Power Chain Reactions . | . . . Alert | -11 -10 -10 ------- Run | Yrd Mat Min Maximum Alert Level . | . . . Low Security (%) 100 | 100 100 100 Level 1 . | . . . Level 2 . | . . . Level 3 . | . . . Level 4 . | . . . Level 5 . | . . . High Security . | . . . Max Security . | . . . Peak Influence 30 | 20 11 30 Initial 11 | . 11 . Average 2 | 3 . 3 Influence Increases 73 | 20 . 53 Destroy 0b10 Robot/C 40 | 20 . 20 Destroy 0b10 Robot/NC 5 | . . 5 Destroy Leader 10 | . . 10 Destroy Structure 18 | . . 18 Influence Decreases 73 | . 20 53 Entered New Map 9 | . 9 . Time Decay 44 | . 11 33 Lost Part 20 | . . 20 Squads Dispatched 1 | . 1 . Investigation 1 | . 1 . Extermination . | . . . Reinforcement . | . . . Assault . | . . . Garrison . | . . . Intercept . | . . . Searches Triggered . | . . . Construction Impeded . | . . . Haulers Reinforced . | . . . Active Scanning Responses . | . . . Cargo Convoy Interrupts . | . . . Stealth | -11 -10 -10 --------- Run | Yrd Mat Min Distress Signals 1 | . 1 . Communications Jammed . | . . . Distress Signals . | . . . Times Spotted 21 | 1 4 16 Peak Tracking Total 13 | 1 3 13 Tactical Retreats 2 | . . 2 Traps | -11 -10 -10 ------- Run | Yrd Mat Min Traps Triggered . | . . . Indirectly . | . . . Trap Hack Attempts . | . . . Triggered . | . . . Disarmed . | . . . Reprogrammed . | . . . Reused . | . . . Traps Extracted . | . . . Installed . | . . . Triggered . | . . . Machines | -11 -10 -10 ---------- Run | Yrd Mat Min Machines Disabled . | . . . Max in Single Turn . | . . . Machines Repaired . | . . . Machines Dismantled . | . . . Machines Sabotaged . | . . . Overloaded Fab Kills . | . . . Hacking | -11 -10 -10 --------- Run | Yrd Mat Min Machines Accessed 3 | . 3 . Terminals 2 | . 2 . Fabricators . | . . . Repair Stations . | . . . Recycling Units 1 | . 1 . Scanalyzers . | . . . Garrison Access . | . . . Total Hacks 11 | . 11 . Successful 6 | . 6 . Failed 5 | . 5 . Catastrophic . | . . . Database Lockouts . | . . . Manual . | . . . Terminals 4 | . 4 . Fabricators . | . . . Repair Stations . | . . . Recycling Units 7 | . 7 . Scanalyzers . | . . . Garrison Access . | . . . Terminal Hacks 1 | . 1 . Security Status 1 | . 1 . Fabricator Hacks . | . . . Repair Station Hacks . | . . . Recycling Unit Hacks 5 | . 5 . Recycle Component 2 | . 2 . Process 1 | . 1 . Retrieve Matter 1 | . 1 . Retrieve Components 1 | . 1 . Scanalyzer . | . . . Garrison Access Hacks . | . . . Unauthorized Hacks . | . . . Terminals . | . . . Fabricators . | . . . Repair Stations . | . . . Recycling Units . | . . . Scanalyzers . | . . . Garrison Access . | . . . Data Cores Recovered . | . . . Used . | . . . Hacking Detections 2 | . 2 . Full Trace Events 2 | . 2 . Feedback Events . | . . . Feedback Blocked . | . . . Robot Schematics Acquired . | . . . Robots Built . | . . . Authchips . | . . . Time . | . . . Total Robot Build Rating . | . . . Part Schematics Acquired . | . . . Parts Built . | . . . Authchips . | . . . Time . | . . . Total Part Build Rating . | . . . Part Studies Acquired . | . . . Parts Repaired . | . . . Time . | . . . Parts Recycled 2 | . 2 . Recycled Matter 39 | . 39 . Retrieved Matter 39 | . 39 . Retrieved Components . | . . . Parts Scanalyzed . | . . . Part Schematics Acquired . | . . . Parts Damaged . | . . . Bothacking | -11 -10 -10 ------------ Run | Yrd Mat Min Used RIF Installer . | . . . Robots Hacked . | . . . Non-combat . | . . . Combat . | . . . Robot Hacks Applied . | . . . Relay Couplers Released . | . . . Fabnet Peak Effective % . | . . . Robots Rewired . | . . . Allies Hacked . | . . . Hacks Repelled . | . . . Allies | -11 -10 -10 -------- Run | Yrd Mat Min Total Allies . | . . . Largest Group . | . . . Highest-Rated Group . | . . . Highest-Rated Ally . | . . . Total Orders . | . . . Ally Attacks . | . . . Total Damage . | . . . Kills . | . . . Allies Corrupted . | . . . Allies Melted . | . . . Intel | -11 -10 -10 ------- Run | Yrd Mat Min Active Infowar (turns) . | . . . Robot Analysis Total . | . . . Derelict Logs Recovered . | . . . Drone Launches . | . . . Drone Recoveries . | . . . Exploration | -11 -10 -10 ------------- Run | Yrd Mat Min Turns Passed 579 | 75 248 256 Spaces Moved 582 | 79 277 226 Core 45 | 22 . 23 Treads . | . . . Legs . | . . . Wheels 537 | 57 277 203 Hover . | . . . Flight . | . . . Fastest Speed 50 | 50 80 80 Average Speed 85 | 71 80 96 Slowest Speed 250 | 80 80 250 Overloaded Moves . | . . . Propulsion Burnouts . | . . . Robots Hopped . | . . . Potential Cave-ins 2 | . . 2 Cave-ins Triggered . | . . . Exploration Rate (%) 24 | 5 30 37 Regions Visited 2 Branch Regions 1 Pre-discovered Areas . | . . . Known Exits Taken . | . . . Unknown Exits Taken 2 | 1 1 . Scrap Searched . | . . . Spaces Dug . | . . . Terrain Destroyed 37 | . . 37 Melee . | . . . Projectile . | . . . AOE 37 | . . 37 Terrain Rammed . | . . . Walls Destroyed . | . . . Machines Disabled . | . . . Actions | -11 -10 -10 --------- Run | Yrd Mat Min Total 633 | 93 297 243 Wait . | . . . Move 580 | 78 276 226 Hop . | . . . Pick Up 19 | 8 11 . Fast Attach . | . . . Attach 8 | 5 2 1 Detach . | . . . Swap 2 | . 1 1 Drop 2 | . 2 . Fire 18 | 2 3 13 Melee . | . . . Ram 4 | . 2 2 Kick . | . . . Crush . | . . . Escape Stasis . | . . . Rewire . | . . . Trap . | . . . Miscellaneous . | . . . Route ------- -11/Scrapyard -10/Materials -10/Mines History --------- Turn | Location | Event 2 | -11/Scrapyard | Met Revision 17 54 | -11/Scrapyard | Discovered new exit (range 8) 76 | -11/Scrapyard | Entered Materials 286 | -10/Materials | Discovered new exit (range 9) 314 | -10/Materials | Build established: Mutant 324 | -10/Materials | Entered Mines 395 | -10/Mines | Assembled infested the area 400 | -10/Mines | Assisted by a Guerilla fighting off Assembled 538 | -10/Mines | Core integrity fell below 50% 575 | -10/Mines | Core integrity fell below 20% 580 | -10/Mines | Destroyed by D-53 Grenadier with Mini Grenade Launcher Last Messages --------------- Grenade Launcher destroyed. The unstable cave ceiling collapses. G-47 Trooper destroyed. The unstable cave ceiling collapses. R-06 Scavenger collects Lgt. Nuclear Core. Acquired 50 matter. U-05 Engineer lays Concrete. R-06 Scavenger collects Imp. Heat Sink. U-05 Engineer lays Concrete. U-05 Engineer builds a Wall. U-05 Engineer lays Concrete. U-05 Engineer builds a Wall. U-05 Engineer lays Concrete. U-05 Engineer builds a Wall. R-06 Scavenger destroyed. U-05 Engineer destroyed. Sml. Laser destroyed. Ion Engine destroyed. The unstable cave ceiling collapses. Lgt. Assault Rifle destroyed. Map ----- +----------------------------------------------------+ | ##?????????????????????????????? | | # ### ## ##??????????????????????????????? | | # #?## ##### ##??????????????????????????????? | | ## #??# ##???# ##?????????????????????????????? | | ?# #??# ###??## ##????????????????????????????? | | ?# #??# #???## ##???????????????????????????? | | ?# #??### #????## #???????????????????????????? | | ?# #????# #?????## ##????####??????????????????? | | ?# #????# #??????# ##??## #######????????????? | | ?# #????# #?????## ##?# ## ##???????????? | | ?# ###### #?##### ### ##??????????? | | ?# ### [! ###????????? | | ?######## ## !%! = ###??????? | | ????????# ###### ! =%* "#??????? | | ????????##### ##???# ## ##??????? | | ????????????## ## ####### #?# ""#????? | | ?????????????########## d # #??? # #???? | | ??????###???????????## d ?????? #?????? | | ????### ####????????# ## #???????? ????? | | ????# #?######?# #???????? "# ???? | | ???## #?# ### #?????? " ##" ?? | | ?### ### #???# ?? #?# ##?? | | ?## ! ## k#???? #?? #??? | | ?# ! # #??? #??? | | ## # # ##### # ????????? | | # #####???##### @ # # #????????? | | ###????# # # #?????????? | | ###??????# ###### #????????????? | | ###????????# % ##???????????????????? | | ###??????????# """ """ ????????????????????? | | ??????????????# """ """ ### #???????????????????? | | ????????????????""" """ ??? ???????????????????? | | ????????????????? ???? ??????????????????? | | ?????????????????"??""" ???? ?????????????????? | | ?????????????????????"" ????? ?????????????????? | | ?????????????????????"" ????? ##????????????????? | | ?????????????????????? ??????#?????????????????? | | ??????????????????????##?????????????????????????? | | ?????????????????????????????????????????????????? | | ?????????????????????????????????????????????????? | | ?????????????????????????????????????????????????? | | ?????????????????????????????????????????????????? | | ?????????????????????????????????????????????????? | | ?????????????????????????????????????????????????? | | ?????????????????????????????????????????????????? | | ?????????????????????????????????????????????????? | | ?????????????????????????????????????????????????? | | ?????????????????????????????????????????????????? | | ?????????????????????????????????????????????????? | | ?????????????????????????????????????????????????? | +----------------------------------------------------+ Best States ------------- Heat Dissipation 25 Energy Generation 10 Energy Capacity 250 Matter Stores 300 Matter Capacity 300 Sight Range 16 Terrain Scan Density 10 Resistance: KI 20 Resistance: TH 20 Resistance: EX 20 Resistance: EM 20 Resistance: I 20 Resistance: S 20 Resistance: P 20 Utility Shielding 33 Evasion (%) 50 Offensive Hacking 10 Item Schematics ----------------- None Robot Schematics ------------------ None Fabricated ------------ Nothing Repaired ---------- Nothing Studied --------- None Alien Tech Used ----------------- None Achievements -------------- DATA ERROR: Steam Global Achievement% Challenges ------------ None Game ------ Seed PlatingImpactMace Manual? 0 Play Time 00:13:30 Cumulative 0.6 hours Start 2025.12.21 @ 15:45:07 End 2025.12.21 @ 15:59:47 Sessions 1 Manual Loads 0 Difficulty Adventurer Special Mode None Game No. 2 Rogue 0 Adventurer 2 Explorer 0 Win Type - Total 0 Types 0/0/0/0/0/0/0/0/0/0 Lore% 0 Gallery% 1 Achievement% 2 Wizard Run 0 Options --------- Layout 1 ASCII 0 Keyboard 0 Movement Mouse Keybinds 0 Fullscreen 1 Font 16/SmallcapsGlow Map View 50x40 Zoom Use 0% Tactical HUD 0 Map Filters NONE Filters NONE Steam SD RUN: 73e8b3b7-780f-47df-9f83-208e3ad01537